[Event "Titled Tuesday Blitz December 27 Late 2022"]
[White "Adewumi, Tanitoluwa"]
[Black "Weisz, Bryan"]
[WhiteFideId "30966396"]
[BlackFideId "30934133"]
[WhiteElo "2283"]
[BlackElo "1973"]
[Result "1-0"]
[Round "04"]
[TimeControl "180+2"]
[Date "2022.12.27"]
[WhiteClock "0:00:06"]
[BlackClock "0:00:12"]

1. e4 {[%clk 0:02:57]}  e5 {[%clk 0:02:56]} 2. Nf3 {[%clk 0:02:48]}  Nc6 {[%clk 0:02:56]} 3. Bb5 {[%clk 0:02:47]}  f5 {[%clk 0:02:44]} 4. d3 {[%clk 0:02:42]}  Nf6 {[%clk 0:02:43]} 5. Nc3 {[%clk 0:02:42]}  Bb4 {[%clk 0:02:39]} 6. Bg5 {[%clk 0:02:34]}  Nd4 {[%clk 0:02:28]} 7. Bc4 {[%clk 0:02:24]}  b5 {[%clk 0:02:24]} 8. Bb3 {[%clk 0:02:18]}  Nxb3 {[%clk 0:02:15]} 9. axb3 {[%clk 0:02:16]}  O-O {[%clk 0:02:02]} 10. O-O {[%clk 0:02:12]}  Bxc3 {[%clk 0:01:36]} 11. bxc3 {[%clk 0:02:10]}  d6 {[%clk 0:01:27]} 12. exf5 {[%clk 0:01:53]}  Bxf5 {[%clk 0:01:26]} 13. d4 {[%clk 0:01:49]}  e4 {[%clk 0:01:17]} 14. Nh4 {[%clk 0:01:45]}  Bd7 {[%clk 0:00:59]} 15. f3 {[%clk 0:01:08]}  h6 {[%clk 0:00:56]} 16. Bxf6 {[%clk 0:00:26]}  Qxf6 {[%clk 0:00:56]} 17. Qe1 {[%clk 0:00:24]}  e3 {[%clk 0:00:50]} 18. g3 {[%clk 0:00:22]}  Rae8 {[%clk 0:00:46]} 19. Qe2 {[%clk 0:00:20]}  b4 {[%clk 0:00:37]} 20. Rxa7 {[%clk 0:00:17]}  bxc3 {[%clk 0:00:33]} 21. Rxc7 {[%clk 0:00:16]}  Bb5 {[%clk 0:00:26]} 22. Qxb5 {[%clk 0:00:16]}  e2 {[%clk 0:00:25]} 23. Qc4+ {[%clk 0:00:13]}  d5 {[%clk 0:00:20]} 24. Qxd5+ {[%clk 0:00:13]}  Kh8 {[%clk 0:00:21]} 25. Re1 {[%clk 0:00:12]}  Rd8 {[%clk 0:00:17]} 26. Qe4 {[%clk 0:00:11]}  Rxd4 {[%clk 0:00:17]} 27. Qe3 {[%clk 0:00:08]}  Rd2 {[%clk 0:00:16]} 28. Qxc3 {[%clk 0:00:06]}  Qb6+ {[%clk 0:00:14]} 29. Qc5 {[%clk 0:00:05]}  Qb8 {[%clk 0:00:11]} 30. Qxf8+ {[%clk 0:00:05]}  Qxf8 {[%clk 0:00:11]} 31. Ng6+ {[%clk 0:00:05]}  Kg8 {[%clk 0:00:12]} 32. Nxf8 {[%clk 0:00:06]}  Kxf8 {[%clk 0:00:12]} 33. Kf2 {[%clk 0:00:06]} 1-0


[Site "https://www.chess.com"]

[Event "Titled Tuesday Blitz December 27 Late 2022"]
[White "Adla, Diego"]
[Black "Tomaszewski, Kacper"]
[WhiteFideId "100072"]
[BlackFideId "1127373"]
[WhiteElo "2383"]
[BlackElo "2313"]
[Result "1-0"]
[Round "04"]
[TimeControl "180+2"]
[Date "2022.12.27"]
[WhiteClock "0:01:52"]
[BlackClock "0:00:03"]

1. Nf3 {[%clk 0:03:00]}  d5 {[%clk 0:02:58]} 2. c4 {[%clk 0:03:00]}  e6 {[%clk 0:02:58]} 3. g3 {[%clk 0:02:59]}  Nf6 {[%clk 0:02:58]} 4. Bg2 {[%clk 0:02:58]}  Bd6 {[%clk 0:02:58]} 5. d4 {[%clk 0:02:55]}  Nc6 {[%clk 0:02:56]} 6. O-O {[%clk 0:02:51]}  O-O {[%clk 0:02:56]} 7. b3 {[%clk 0:02:43]}  dxc4 {[%clk 0:02:52]} 8. bxc4 {[%clk 0:02:43]}  e5 {[%clk 0:02:52]} 9. e3 {[%clk 0:02:36]}  exd4 {[%clk 0:02:50]} 10. exd4 {[%clk 0:02:35]}  Rb8 {[%clk 0:02:37]} 11. Bb2 {[%clk 0:02:35]}  b6 {[%clk 0:02:27]} 12. d5 {[%clk 0:02:32]}  Na5 {[%clk 0:02:26]} 13. Qc2 {[%clk 0:02:30]}  Ba6 {[%clk 0:02:16]} 14. Nbd2 {[%clk 0:02:30]}  Re8 {[%clk 0:02:08]} 15. Ng5 {[%clk 0:02:29]}  g6 {[%clk 0:01:52]} 16. Rfe1 {[%clk 0:02:24]}  h6 {[%clk 0:01:14]} 17. Rxe8+ {[%clk 0:02:23]}  Qxe8 {[%clk 0:01:10]} 18. Bxf6 {[%clk 0:02:21]}  hxg5 {[%clk 0:01:10]} 19. Bb2 {[%clk 0:02:10]}  Bb4 {[%clk 0:00:47]} 20. Ne4 {[%clk 0:02:07]}  Kf8 {[%clk 0:00:36]} 21. a3 {[%clk 0:02:03]}  Be7 {[%clk 0:00:06]} 22. Qc3 {[%clk 0:02:02]}  f6 {[%clk 0:00:06]} 23. Nxf6 {[%clk 0:01:59]}  Bxf6 {[%clk 0:00:06]} 24. Qxf6+ {[%clk 0:01:59]}  Qf7 {[%clk 0:00:07]} 25. Qh8+ {[%clk 0:01:58]}  Qg8 {[%clk 0:00:07]} 26. Qh6+ {[%clk 0:01:53]}  Kf7 {[%clk 0:00:05]} 27. Qxg5 {[%clk 0:01:52]}  Nxc4 {[%clk 0:00:02]} 28. Qf6+ {[%clk 0:01:52]}  Ke8 {[%clk 0:00:03]} 29. Re1+ {[%clk 0:01:52]}  Kd7 {[%clk 0:00:03]} 30. Bh3+ {[%clk 0:01:52]} 1-0


[Site "https://www.chess.com"]

[Event "Titled Tuesday Blitz December 27 Late 2022"]
[White "Albertini, Luca"]
[Black "Poliakova, Varvara"]
[WhiteFideId "847038"]
[BlackFideId "13518313"]
[WhiteElo "2084"]
[BlackElo "2010"]
[Result "1-0"]
[Round "04"]
[TimeControl "180+2"]
[Date "2022.12.27"]
[WhiteClock "0:00:35"]
[BlackClock "0:00:21"]

1. e4 {[%clk 0:03:00]}  e5 {[%clk 0:02:59]} 2. Nf3 {[%clk 0:02:59]}  Nc6 {[%clk 0:02:59]} 3. Bc4 {[%clk 0:02:56]}  Bc5 {[%clk 0:02:59]} 4. b4 {[%clk 0:02:57]}  Bxb4 {[%clk 0:02:58]} 5. c3 {[%clk 0:02:57]}  Bd6 {[%clk 0:02:58]} 6. d4 {[%clk 0:02:57]}  Nf6 {[%clk 0:02:59]} 7. O-O {[%clk 0:02:55]}  O-O {[%clk 0:02:58]} 8. Bg5 {[%clk 0:02:56]}  h6 {[%clk 0:02:58]} 9. Bh4 {[%clk 0:02:54]}  Re8 {[%clk 0:02:55]} 10. Nbd2 {[%clk 0:02:50]}  a6 {[%clk 0:02:55]} 11. Rb1 {[%clk 0:02:49]}  b5 {[%clk 0:02:55]} 12. Bd3 {[%clk 0:02:49]}  Rb8 {[%clk 0:02:54]} 13. d5 {[%clk 0:02:46]}  Na5 {[%clk 0:02:37]} 14. a4 {[%clk 0:02:44]}  c6 {[%clk 0:02:25]} 15. c4 {[%clk 0:02:43]}  g5 {[%clk 0:02:21]} 16. Bg3 {[%clk 0:02:29]}  b4 {[%clk 0:02:17]} 17. h4 {[%clk 0:02:07]}  g4 {[%clk 0:02:14]} 18. Nh2 {[%clk 0:02:07]}  h5 {[%clk 0:02:12]} 19. f3 {[%clk 0:02:08]}  Bc5+ {[%clk 0:02:01]} 20. Kh1 {[%clk 0:02:07]}  d6 {[%clk 0:02:01]} 21. f4 {[%clk 0:01:56]}  exf4 {[%clk 0:01:46]} 22. Bxf4 {[%clk 0:01:55]}  Nh7 {[%clk 0:01:42]} 23. e5 {[%clk 0:01:42]}  Qxh4 {[%clk 0:01:31]} 24. g3 {[%clk 0:01:33]}  Qe7 {[%clk 0:01:22]} 25. Qc2 {[%clk 0:01:20]}  f5 {[%clk 0:01:18]} 26. e6 {[%clk 0:01:10]}  b3 {[%clk 0:01:12]} 27. Nxb3 {[%clk 0:01:00]}  Nxb3 {[%clk 0:01:11]} 28. Rxb3 {[%clk 0:00:59]}  Rxb3 {[%clk 0:01:10]} 29. Qxb3 {[%clk 0:01:00]}  cxd5 {[%clk 0:00:59]} 30. cxd5 {[%clk 0:00:59]}  Ng5 {[%clk 0:00:59]} 31. Bxf5 {[%clk 0:00:55]}  Nh3 {[%clk 0:00:59]} 32. Bg6 {[%clk 0:00:50]}  Rf8 {[%clk 0:00:59]} 33. Bxh5 {[%clk 0:00:50]}  Nxf4 {[%clk 0:00:43]} 34. Bf7+ {[%clk 0:00:49]}  Kg7 {[%clk 0:00:34]} 35. Rxf4 {[%clk 0:00:45]}  Rh8 {[%clk 0:00:34]} 36. Qc3+ {[%clk 0:00:43]}  Kh7 {[%clk 0:00:31]} 37. Rxg4 {[%clk 0:00:39]}  Bb7 {[%clk 0:00:21]} 38. Qg7# {[%clk 0:00:35]} 1-0


[Site "https://www.chess.com"]

[Event "Titled Tuesday Blitz December 27 Late 2022"]
[White "Andreev, Eduard"]
[Black "Ankerst, Mihael"]
[WhiteFideId "14103400"]
[BlackFideId "14602369"]
[WhiteElo "2413"]
[BlackElo "2370"]
[Result "1-0"]
[Round "04"]
[TimeControl "180+2"]
[Date "2022.12.27"]
[WhiteClock "0:01:35"]
[BlackClock "0:01:32"]

1. Nf3 {[%clk 0:03:00]}  Nf6 {[%clk 0:02:58]} 2. g3 {[%clk 0:02:59]}  g6 {[%clk 0:02:58]} 3. Bg2 {[%clk 0:02:59]}  Bg7 {[%clk 0:02:59]} 4. O-O {[%clk 0:03:00]}  O-O {[%clk 0:03:00]} 5. d4 {[%clk 0:03:00]}  d6 {[%clk 0:03:00]} 6. c4 {[%clk 0:03:00]}  Nbd7 {[%clk 0:03:01]} 7. Nc3 {[%clk 0:03:00]}  e5 {[%clk 0:03:02]} 8. e4 {[%clk 0:03:01]}  c6 {[%clk 0:03:02]} 9. Re1 {[%clk 0:02:58]}  exd4 {[%clk 0:03:01]} 10. Nxd4 {[%clk 0:02:58]}  Ng4 {[%clk 0:03:02]} 11. h3 {[%clk 0:02:52]}  Qb6 {[%clk 0:02:58]} 12. Nce2 {[%clk 0:02:47]}  Nge5 {[%clk 0:02:57]} 13. b3 {[%clk 0:02:45]}  Nc5 {[%clk 0:02:52]} 14. Be3 {[%clk 0:02:45]}  a5 {[%clk 0:02:52]} 15. Rb1 {[%clk 0:02:40]}  Ned3 {[%clk 0:02:50]} 16. Rf1 {[%clk 0:02:38]}  Ne5 {[%clk 0:02:50]} 17. Qc2 {[%clk 0:02:36]}  Re8 {[%clk 0:02:50]} 18. Kh2 {[%clk 0:02:28]}  Bd7 {[%clk 0:02:48]} 19. a3 {[%clk 0:02:28]}  Qc7 {[%clk 0:02:11]} 20. b4 {[%clk 0:02:24]}  axb4 {[%clk 0:02:11]} 21. axb4 {[%clk 0:02:25]}  Ne6 {[%clk 0:02:12]} 22. f4 {[%clk 0:02:15]}  Nxd4 {[%clk 0:02:00]} 23. Bxd4 {[%clk 0:02:04]}  c5 {[%clk 0:01:59]} 24. bxc5 {[%clk 0:02:03]}  Nc6 {[%clk 0:01:52]} 25. Bxg7 {[%clk 0:02:00]}  Kxg7 {[%clk 0:01:52]} 26. cxd6 {[%clk 0:01:58]}  Qxd6 {[%clk 0:01:53]} 27. e5 {[%clk 0:01:58]}  Qc5 {[%clk 0:01:53]} 28. Rxb7 {[%clk 0:01:54]}  Bf5 {[%clk 0:01:45]} 29. Qb2 {[%clk 0:01:41]}  Na5 {[%clk 0:01:38]} 30. e6+ {[%clk 0:01:36]}  Kh6 {[%clk 0:01:32]} 31. Rxf7 {[%clk 0:01:35]} 1-0


[Site "https://www.chess.com"]

[Event "Titled Tuesday Blitz December 27 Late 2022"]
[White "Ardila, Oscar Humberto"]
[Black "Garcia Cuenca, Victor"]
[WhiteFideId "4404742"]
[BlackFideId "2250829"]
[WhiteElo "1982"]
[BlackElo "2324"]
[Result "0-1"]
[Round "04"]
[TimeControl "180+2"]
[Date "2022.12.27"]
[WhiteClock "0:00:02"]
[BlackClock "0:00:10"]

1. d4 {[%clk 0:02:59]}  Nf6 {[%clk 0:02:58]} 2. c4 {[%clk 0:03:00]}  c5 {[%clk 0:02:58]} 3. d5 {[%clk 0:02:59]}  b5 {[%clk 0:02:59]} 4. Qc2 {[%clk 0:02:59]}  g6 {[%clk 0:02:57]} 5. e4 {[%clk 0:02:59]}  d6 {[%clk 0:02:57]} 6. cxb5 {[%clk 0:02:59]}  a6 {[%clk 0:02:57]} 7. Nc3 {[%clk 0:02:59]}  Bg7 {[%clk 0:02:57]} 8. Nf3 {[%clk 0:02:57]}  O-O {[%clk 0:02:58]} 9. Be2 {[%clk 0:02:54]}  axb5 {[%clk 0:02:56]} 10. Bxb5 {[%clk 0:02:51]}  Na6 {[%clk 0:02:49]} 11. O-O {[%clk 0:02:49]}  Nc7 {[%clk 0:02:49]} 12. Bc6 {[%clk 0:02:47]}  Rb8 {[%clk 0:02:48]} 13. Bf4 {[%clk 0:02:44]}  Ba6 {[%clk 0:02:38]} 14. Rfe1 {[%clk 0:02:43]}  Nb5 {[%clk 0:02:27]} 15. Rad1 {[%clk 0:02:09]}  Nh5 {[%clk 0:02:13]} 16. Bg5 {[%clk 0:02:03]}  h6 {[%clk 0:01:54]} 17. Be3 {[%clk 0:01:54]}  Qb6 {[%clk 0:01:52]} 18. Bxb5 {[%clk 0:01:41]}  Bxb5 {[%clk 0:01:51]} 19. Nxb5 {[%clk 0:01:41]}  Qxb5 {[%clk 0:01:50]} 20. b3 {[%clk 0:01:41]}  Rfc8 {[%clk 0:01:21]} 21. Nd2 {[%clk 0:01:39]}  Nf6 {[%clk 0:01:17]} 22. Nc4 {[%clk 0:01:35]}  Nd7 {[%clk 0:01:08]} 23. Qd2 {[%clk 0:01:32]}  Kh7 {[%clk 0:01:06]} 24. Rc1 {[%clk 0:01:12]}  Ra8 {[%clk 0:01:03]} 25. Rc2 {[%clk 0:01:09]}  Nb6 {[%clk 0:01:00]} 26. Qd3 {[%clk 0:01:06]}  Nxc4 {[%clk 0:00:57]} 27. Qxc4 {[%clk 0:01:07]}  Qxc4 {[%clk 0:00:55]} 28. bxc4 {[%clk 0:01:08]}  Ra4 {[%clk 0:00:54]} 29. f4 {[%clk 0:01:06]}  Rca8 {[%clk 0:00:53]} 30. Ree2 {[%clk 0:01:06]}  Rb4 {[%clk 0:00:46]} 31. e5 {[%clk 0:01:05]}  Raa4 {[%clk 0:00:35]} 32. Bf2 {[%clk 0:00:38]}  Rxc4 {[%clk 0:00:33]} 33. Bg3 {[%clk 0:00:37]}  Rxc2 {[%clk 0:00:29]} 34. Rxc2 {[%clk 0:00:37]}  Rd4 {[%clk 0:00:23]} 35. Kf2 {[%clk 0:00:34]}  Rxd5 {[%clk 0:00:23]} 36. Re2 {[%clk 0:00:32]}  dxe5 {[%clk 0:00:21]} 37. fxe5 {[%clk 0:00:33]}  e6 {[%clk 0:00:21]} 38. Kf3 {[%clk 0:00:32]}  g5 {[%clk 0:00:20]} 39. Ke4 {[%clk 0:00:32]}  Rd4+ {[%clk 0:00:20]} 40. Kf3 {[%clk 0:00:33]}  Ra4 {[%clk 0:00:20]} 41. Rc2 {[%clk 0:00:32]}  Kg6 {[%clk 0:00:17]} 42. h3 {[%clk 0:00:27]}  Kf5 {[%clk 0:00:17]} 43. Rxc5 {[%clk 0:00:24]}  Rxa2 {[%clk 0:00:16]} 44. Rc7 {[%clk 0:00:23]}  Kg6 {[%clk 0:00:16]} 45. Ke4 {[%clk 0:00:17]}  Ra4+ {[%clk 0:00:16]} 46. Kf3 {[%clk 0:00:17]}  Ra3+ {[%clk 0:00:16]} 47. Kf2 {[%clk 0:00:17]}  Rxg3 {[%clk 0:00:17]} 48. Rc5 {[%clk 0:00:12]}  Ra3 {[%clk 0:00:15]} 49. g4 {[%clk 0:00:12]}  Rxh3 {[%clk 0:00:13]} 50. Kg2 {[%clk 0:00:13]}  Ra3 {[%clk 0:00:12]} 51. Rb5 {[%clk 0:00:13]}  Re3 {[%clk 0:00:13]} 52. Kf2 {[%clk 0:00:13]}  Rxe5 {[%clk 0:00:13]} 53. Rb7 {[%clk 0:00:13]}  Re4 {[%clk 0:00:14]} 54. Kf3 {[%clk 0:00:13]}  Rf4+ {[%clk 0:00:14]} 55. Kg3 {[%clk 0:00:14]}  h5 {[%clk 0:00:14]} 56. gxh5+ {[%clk 0:00:12]}  Kf6 {[%clk 0:00:15]} 57. Rb8 {[%clk 0:00:10]}  Rh4 {[%clk 0:00:15]} 58. Rg8 {[%clk 0:00:03]}  Rxh5 {[%clk 0:00:16]} 59. Kg4 {[%clk 0:00:04]}  Rh4+ {[%clk 0:00:15]} 60. Kg3 {[%clk 0:00:05]}  Kg6 {[%clk 0:00:15]} 61. Rc8 {[%clk 0:00:04]}  f5 {[%clk 0:00:16]} 62. Rc6 {[%clk 0:00:04]}  Kf6 {[%clk 0:00:15]} 63. Rc7 {[%clk 0:00:04]}  Re4 {[%clk 0:00:15]} 64. Rc8 {[%clk 0:00:04]}  g4 {[%clk 0:00:15]} 65. Re8 {[%clk 0:00:03]}  Kf7 {[%clk 0:00:14]} 66. Rc8 {[%clk 0:00:03]}  Be5+ {[%clk 0:00:15]} 67. Kf2 {[%clk 0:00:03]}  f4 {[%clk 0:00:15]} 68. Ra8 {[%clk 0:00:03]}  Rb4 {[%clk 0:00:13]} 69. Ra7+ {[%clk 0:00:03]}  Kf6 {[%clk 0:00:13]} 70. Ra8 {[%clk 0:00:04]}  Kf5 {[%clk 0:00:13]} 71. Rf8+ {[%clk 0:00:03]}  Ke4 {[%clk 0:00:13]} 72. Rg8 {[%clk 0:00:04]}  Rb2+ {[%clk 0:00:13]} 73. Ke1 {[%clk 0:00:04]}  g3 {[%clk 0:00:13]} 74. Kd1 {[%clk 0:00:04]}  Kf3 {[%clk 0:00:12]} 75. Rg5 {[%clk 0:00:04]}  Bd4 {[%clk 0:00:10]} 76. Kc1 {[%clk 0:00:04]}  e5 {[%clk 0:00:10]} 77. Rf5 {[%clk 0:00:02]}  g2 {[%clk 0:00:10]} 0-1


[Site "https://www.chess.com"]

[Event "Titled Tuesday Blitz December 27 Late 2022"]
[White "Bambino Filho, Antonio Carlos"]
[Black "Fishbein, Alexander"]
[WhiteFideId "2113163"]
[BlackFideId "2000377"]
[WhiteElo "2144"]
[BlackElo "2366"]
[Result "1/2-1/2"]
[Round "04"]
[TimeControl "180+2"]
[Date "2022.12.27"]
[WhiteClock "0:00:18"]
[BlackClock "0:01:19"]

1. e4 {[%clk 0:02:59]}  e6 {[%clk 0:02:56]} 2. Nc3 {[%clk 0:02:58]}  d5 {[%clk 0:02:55]} 3. Nf3 {[%clk 0:02:59]}  Nf6 {[%clk 0:02:53]} 4. e5 {[%clk 0:02:59]}  Nfd7 {[%clk 0:02:52]} 5. d4 {[%clk 0:03:00]}  c5 {[%clk 0:02:51]} 6. Bg5 {[%clk 0:03:00]}  Be7 {[%clk 0:02:50]} 7. Bxe7 {[%clk 0:03:00]}  Qxe7 {[%clk 0:02:47]} 8. dxc5 {[%clk 0:03:00]}  O-O {[%clk 0:02:46]} 9. Qd2 {[%clk 0:02:51]}  Nc6 {[%clk 0:02:43]} 10. Qf4 {[%clk 0:02:43]}  Qxc5 {[%clk 0:02:42]} 11. Bd3 {[%clk 0:02:36]}  Qb4 {[%clk 0:02:37]} 12. Qxb4 {[%clk 0:02:16]}  Nxb4 {[%clk 0:02:38]} 13. O-O-O {[%clk 0:02:15]}  a6 {[%clk 0:02:34]} 14. a3 {[%clk 0:02:10]}  Nxd3+ {[%clk 0:02:33]} 15. cxd3 {[%clk 0:02:10]}  b5 {[%clk 0:02:25]} 16. Ne2 {[%clk 0:02:02]}  d4 {[%clk 0:02:23]} 17. Nexd4 {[%clk 0:02:00]}  Bb7 {[%clk 0:02:22]} 18. Rhe1 {[%clk 0:01:53]}  Rac8+ {[%clk 0:02:22]} 19. Kb1 {[%clk 0:01:53]}  Nb6 {[%clk 0:02:12]} 20. Nc2 {[%clk 0:01:49]}  Bxf3 {[%clk 0:02:09]} 21. gxf3 {[%clk 0:01:47]}  Nd5 {[%clk 0:02:09]} 22. Ne3 {[%clk 0:01:45]}  Nf4 {[%clk 0:02:08]} 23. d4 {[%clk 0:01:38]}  Rfd8 {[%clk 0:02:07]} 24. Rd2 {[%clk 0:01:36]}  Rc7 {[%clk 0:02:04]} 25. Rc1 {[%clk 0:01:36]}  Rxc1+ {[%clk 0:02:02]} 26. Kxc1 {[%clk 0:01:36]}  Rxd4 {[%clk 0:02:01]} 27. Nc2 {[%clk 0:01:24]}  Rxd2 {[%clk 0:01:58]} 28. Kxd2 {[%clk 0:01:25]}  Ng6 {[%clk 0:01:54]} 29. Nb4 {[%clk 0:01:23]}  Nxe5 {[%clk 0:01:54]} 30. Nxa6 {[%clk 0:01:22]}  Nxf3+ {[%clk 0:01:54]} 31. Ke3 {[%clk 0:01:22]}  Ne5 {[%clk 0:01:53]} 32. b3 {[%clk 0:01:20]}  Nc6 {[%clk 0:01:48]} 33. Nc7 {[%clk 0:01:14]}  Na5 {[%clk 0:01:48]} 34. Nxb5 {[%clk 0:01:10]}  Nxb3 {[%clk 0:01:48]} 35. Kd3 {[%clk 0:01:11]}  Kf8 {[%clk 0:01:45]} 36. Kc3 {[%clk 0:01:12]}  Nc5 {[%clk 0:01:44]} 37. Kc4 {[%clk 0:01:10]}  Ne4 {[%clk 0:01:43]} 38. a4 {[%clk 0:01:04]}  Ke7 {[%clk 0:01:43]} 39. a5 {[%clk 0:01:00]}  Kd7 {[%clk 0:01:42]} 40. a6 {[%clk 0:00:59]}  Kc6 {[%clk 0:01:42]} 41. a7 {[%clk 0:00:49]}  Kb7 {[%clk 0:01:42]} 42. f3 {[%clk 0:00:49]}  Nd2+ {[%clk 0:01:42]} 43. Kd3 {[%clk 0:00:39]}  Nxf3 {[%clk 0:01:43]} 44. h3 {[%clk 0:00:34]}  g5 {[%clk 0:01:42]} 45. Nd6+ {[%clk 0:00:28]}  Kxa7 {[%clk 0:01:41]} 46. Nxf7 {[%clk 0:00:29]}  h6 {[%clk 0:01:34]} 47. Ke3 {[%clk 0:00:28]}  Ng1 {[%clk 0:01:34]} 48. Nxh6 {[%clk 0:00:27]}  Nxh3 {[%clk 0:01:34]} 49. Ke4 {[%clk 0:00:26]}  Kb6 {[%clk 0:01:32]} 50. Ke5 {[%clk 0:00:21]}  Nf4 {[%clk 0:01:28]} 51. Kf6 {[%clk 0:00:19]}  Kc5 {[%clk 0:01:20]} 52. Kxg5 {[%clk 0:00:19]}  e5 {[%clk 0:01:19]} 53. Kf5 {[%clk 0:00:19]}  Kd4 {[%clk 0:01:19]} 54. Ng4 {[%clk 0:00:18]}  Nd3 {[%clk 0:01:19]} 55. Nxe5 {[%clk 0:00:18]} 1/2-1/2


[Site "https://www.chess.com"]

[Event "Titled Tuesday Blitz December 27 Late 2022"]
[White "Baskakov, Egor"]
[Black "Putnam, Liam"]
[WhiteFideId "24197866"]
[BlackFideId "30938279"]
[WhiteElo "2215"]
[BlackElo "2285"]
[Result "0-1"]
[Round "04"]
[TimeControl "180+2"]
[Date "2022.12.27"]
[WhiteClock "0:00:09"]
[BlackClock "0:00:09"]

1. e4 {[%clk 0:03:00]}  c5 {[%clk 0:02:56]} 2. Nf3 {[%clk 0:03:00]}  d6 {[%clk 0:02:57]} 3. d4 {[%clk 0:02:59]}  cxd4 {[%clk 0:02:58]} 4. Nxd4 {[%clk 0:03:00]}  Nf6 {[%clk 0:02:58]} 5. Nc3 {[%clk 0:03:00]}  Nc6 {[%clk 0:02:58]} 6. g3 {[%clk 0:03:00]}  g6 {[%clk 0:02:57]} 7. Nde2 {[%clk 0:03:00]}  h5 {[%clk 0:02:52]} 8. h3 {[%clk 0:03:00]}  Bg7 {[%clk 0:02:53]} 9. Bg2 {[%clk 0:03:00]}  O-O {[%clk 0:02:45]} 10. O-O {[%clk 0:03:00]}  a6 {[%clk 0:02:44]} 11. a4 {[%clk 0:03:00]}  Bd7 {[%clk 0:02:37]} 12. Nd5 {[%clk 0:02:57]}  Rc8 {[%clk 0:02:31]} 13. Be3 {[%clk 0:02:57]}  Nxd5 {[%clk 0:02:22]} 14. exd5 {[%clk 0:02:58]}  Ne5 {[%clk 0:02:23]} 15. b3 {[%clk 0:02:56]}  Bf5 {[%clk 0:02:23]} 16. Nd4 {[%clk 0:02:54]}  Nd7 {[%clk 0:01:47]} 17. Nxf5 {[%clk 0:02:52]}  gxf5 {[%clk 0:01:45]} 18. Qxh5 {[%clk 0:02:52]}  e6 {[%clk 0:01:30]} 19. dxe6 {[%clk 0:02:47]}  fxe6 {[%clk 0:01:31]} 20. Rad1 {[%clk 0:02:44]}  Qe7 {[%clk 0:01:24]} 21. c4 {[%clk 0:02:41]}  Nc5 {[%clk 0:01:21]} 22. Rb1 {[%clk 0:02:32]}  a5 {[%clk 0:01:12]} 23. Rfd1 {[%clk 0:02:28]}  b6 {[%clk 0:01:11]} 24. Bg5 {[%clk 0:02:20]}  Qc7 {[%clk 0:01:01]} 25. Qh4 {[%clk 0:02:13]}  Rf7 {[%clk 0:00:55]} 26. Bf3 {[%clk 0:02:06]}  Rd7 {[%clk 0:00:44]} 27. Rd2 {[%clk 0:01:50]}  Bc3 {[%clk 0:00:42]} 28. Re2 {[%clk 0:01:50]}  Rh7 {[%clk 0:00:41]} 29. Qf4 {[%clk 0:01:43]}  Be5 {[%clk 0:00:39]} 30. Qd2 {[%clk 0:01:39]}  Rxh3 {[%clk 0:00:39]} 31. Kg2 {[%clk 0:01:38]}  Qh7 {[%clk 0:00:39]} 32. Bh4 {[%clk 0:01:33]}  Rxh4 {[%clk 0:00:33]} 33. gxh4 {[%clk 0:01:33]}  Kf7 {[%clk 0:00:23]} 34. Rh1 {[%clk 0:01:20]}  Rg8+ {[%clk 0:00:23]} 35. Kf1 {[%clk 0:01:20]}  Nxb3 {[%clk 0:00:24]} 36. Qd1 {[%clk 0:01:03]}  Nc5 {[%clk 0:00:21]} 37. Qb1 {[%clk 0:00:58]}  Rb8 {[%clk 0:00:19]} 38. h5 {[%clk 0:00:57]}  Nxa4 {[%clk 0:00:19]} 39. Qb5 {[%clk 0:00:57]}  Nc5 {[%clk 0:00:18]} 40. Qc6 {[%clk 0:00:54]}  Kf6 {[%clk 0:00:13]} 41. h6 {[%clk 0:00:44]}  Qd7 {[%clk 0:00:13]} 42. h7 {[%clk 0:00:38]}  Qxc6 {[%clk 0:00:12]} 43. Bxc6 {[%clk 0:00:39]}  Rh8 {[%clk 0:00:12]} 44. Re3 {[%clk 0:00:32]}  Kg7 {[%clk 0:00:09]} 45. Reh3 {[%clk 0:00:28]}  a4 {[%clk 0:00:09]} 46. Rg1+ {[%clk 0:00:24]}  Kf7 {[%clk 0:00:09]} 47. Ke2 {[%clk 0:00:19]}  Bb2 {[%clk 0:00:10]} 48. Bf3 {[%clk 0:00:17]}  a3 {[%clk 0:00:09]} 49. Bh5+ {[%clk 0:00:14]}  Ke7 {[%clk 0:00:10]} 50. Rg8 {[%clk 0:00:12]}  a2 {[%clk 0:00:09]} 51. Rh1 {[%clk 0:00:09]}  a1=Q {[%clk 0:00:09]} 52. Rxa1 {[%clk 0:00:09]}  Bxa1 {[%clk 0:00:10]} 53. Bg6 {[%clk 0:00:09]}  Nd7 {[%clk 0:00:08]} 54. f3 {[%clk 0:00:09]}  Bf6 {[%clk 0:00:09]} 55. Kf2 {[%clk 0:00:09]}  Ne5 {[%clk 0:00:09]} 0-1


[Site "https://www.chess.com"]

[Event "Titled Tuesday Blitz December 27 Late 2022"]
[White "Battlecruiser_Operational"]
[Black "Kokoszczynski, Jan"]
[BlackFideId "1174460"]
[WhiteElo "2417"]
[BlackElo "2247"]
[Result "1-0"]
[Round "04"]
[TimeControl "180+2"]
[Date "2022.12.27"]
[WhiteClock "0:00:02"]
[BlackClock "0:00:01"]

1. d4 {[%clk 0:02:55]}  Nf6 {[%clk 0:02:58]} 2. c4 {[%clk 0:02:55]}  g6 {[%clk 0:02:59]} 3. Nc3 {[%clk 0:02:54]}  Bg7 {[%clk 0:02:59]} 4. e4 {[%clk 0:02:54]}  O-O {[%clk 0:02:59]} 5. Nf3 {[%clk 0:02:54]}  d6 {[%clk 0:02:59]} 6. Be2 {[%clk 0:02:54]}  Bg4 {[%clk 0:02:53]} 7. Be3 {[%clk 0:02:52]}  Nc6 {[%clk 0:02:39]} 8. d5 {[%clk 0:02:50]}  Bxf3 {[%clk 0:02:01]} 9. Bxf3 {[%clk 0:02:51]}  Ne5 {[%clk 0:02:01]} 10. Be2 {[%clk 0:02:50]}  e6 {[%clk 0:02:01]} 11. O-O {[%clk 0:02:46]}  exd5 {[%clk 0:02:01]} 12. cxd5 {[%clk 0:02:47]}  Re8 {[%clk 0:02:01]} 13. Rc1 {[%clk 0:02:43]}  a6 {[%clk 0:01:54]} 14. f4 {[%clk 0:02:31]}  Ned7 {[%clk 0:01:54]} 15. Bf3 {[%clk 0:02:31]}  b5 {[%clk 0:01:51]} 16. a3 {[%clk 0:02:21]}  Rb8 {[%clk 0:01:50]} 17. Qd3 {[%clk 0:02:12]}  Nb6 {[%clk 0:01:49]} 18. b3 {[%clk 0:02:12]}  Qe7 {[%clk 0:01:39]} 19. Rfe1 {[%clk 0:02:11]}  Nfd7 {[%clk 0:01:34]} 20. Bf2 {[%clk 0:01:54]}  Qf8 {[%clk 0:01:33]} 21. Ne2 {[%clk 0:01:46]}  Rec8 {[%clk 0:01:26]} 22. Nd4 {[%clk 0:01:44]}  c5 {[%clk 0:01:23]} 23. dxc6 {[%clk 0:01:43]}  Nc5 {[%clk 0:01:23]} 24. Qd1 {[%clk 0:01:40]}  Rc7 {[%clk 0:01:14]} 25. Re2 {[%clk 0:01:08]}  Rbc8 {[%clk 0:01:11]} 26. e5 {[%clk 0:00:55]}  dxe5 {[%clk 0:01:06]} 27. fxe5 {[%clk 0:00:56]}  Rd8 {[%clk 0:01:06]} 28. Qc2 {[%clk 0:00:50]}  Bh6 {[%clk 0:00:56]} 29. Qxc5 {[%clk 0:00:44]}  Bxc1 {[%clk 0:00:56]} 30. Qxc1 {[%clk 0:00:38]}  Nd5 {[%clk 0:00:56]} 31. e6 {[%clk 0:00:35]}  Re7 {[%clk 0:00:40]} 32. Bh4 {[%clk 0:00:24]}  f6 {[%clk 0:00:39]} 33. Qc5 {[%clk 0:00:19]}  Nf4 {[%clk 0:00:38]} 34. Re4 {[%clk 0:00:19]}  g5 {[%clk 0:00:37]} 35. Bg3 {[%clk 0:00:18]}  Nd3 {[%clk 0:00:10]} 36. Qc3 {[%clk 0:00:17]}  Ne5 {[%clk 0:00:06]} 37. Bxe5 {[%clk 0:00:13]}  fxe5 {[%clk 0:00:07]} 38. Rxe5 {[%clk 0:00:14]}  Qf4 {[%clk 0:00:08]} 39. Ne2 {[%clk 0:00:12]}  Qf6 {[%clk 0:00:03]} 40. Qe3 {[%clk 0:00:08]}  Rc8 {[%clk 0:00:03]} 41. Rxg5+ {[%clk 0:00:08]}  Kh8 {[%clk 0:00:03]} 42. Qe5 {[%clk 0:00:07]}  Rxe6 {[%clk 0:00:03]} 43. Qxf6+ {[%clk 0:00:06]}  Rxf6 {[%clk 0:00:04]} 44. Nd4 {[%clk 0:00:05]}  Rd6 {[%clk 0:00:04]} 45. Nf5 {[%clk 0:00:04]}  Rd2 {[%clk 0:00:04]} 46. h4 {[%clk 0:00:04]}  a5 {[%clk 0:00:02]} 47. Ne7 {[%clk 0:00:03]}  Re8 {[%clk 0:00:01]} 48. c7 {[%clk 0:00:03]}  Rc2 {[%clk 0:00:01]} 49. Bc6 {[%clk 0:00:02]} 1-0


[Site "https://www.chess.com"]